fUST/lending_fUST_20240616
["ID","MTS","AMOUNT","RATE_DAILY","PERIOD"]
[329595556,1718482252221,-143.61178212,0.00016438,2]
[329595557,1718482252239,-2092.23821788,0.00016438,2]
[329595558,1718482252259,-500.0,0.00016438,2]
[329595559,1718482252272,-500.0,0.00016438,2]
[329595560,1718482252282,-2553.19,0.00016438,2]
[329595561,1718482252293,-500.0,0.00016438,2]
[329595562,1718482252305,-500.0,0.00016438,2]
[329595563,1718482252315,-442.4,0.00016438,2]
[329595564,1718482252331,-500.0,0.00016438,2]
[329595565,1718482252344,-500.0,0.00016438,2]
[329595566,1718482252357,-500.0,0.00016438,2]
[329595567,1718482252369,-500.0,0.00016438,2]
[329595568,1718482252384,-1721.89,0.00016438,2]
[329595569,1718482252395,-151.0,0.00016438,2]
[329595570,1718482252411,-151.0,0.00016438,2]
[329595571,1718482252424,-155.01550155,0.00016545,2]
[329595572,1718482252436,-442.4,0.0001658,2]
[329595573,1718482252456,-151.0,0.00016612,2]
[329595574,1718482252470,-2000.0,0.00016612,2]
[329595575,1718482252500,-5270.69012497,0.00016663,2]
[329595576,1718482252517,-151.0,0.00016709,2]
[329595577,1718482252531,-152.11777245,0.00016712,2]
[329595578,1718482252543,-224.168114,0.00016712,2]
[329595579,1718482252556,-2096.53889493,0.00016712,2]
[329595580,1718482252568,-3617.03875472,0.00016712,2]
[329595581,1718482252580,-3617.03875472,0.00016712,2]
[329595582,1718482252601,-500.0,0.00016712,2]
[329595583,1718482252611,-500.0,0.00016712,2]
[329595584,1718482252629,-500.0,0.00016712,2]
[329595585,1718482252644,-151.0,0.00016712,2]
[329595586,1718482252656,-500.0,0.00016712,2]
[329595587,1718482252674,-514.16751253,0.00016712,2]
[329595588,1718482252691,-500.0,0.00016712,2]
[329595589,1718482252703,-500.0,0.00016712,2]
[329595590,1718482252718,-500.0,0.00016712,2]
[329595591,1718482252745,-500.0,0.00016712,2]
[329595592,1718482252766,-500.0,0.00016712,2]
[329595593,1718482252778,-500.0,0.00016712,2]
[329595594,1718482252792,-500.0,0.00016712,2]
[329595595,1718482252807,-500.0,0.00016712,2]
[329595596,1718482252832,-500.0,0.00016712,2]
[329595597,1718482252848,-500.0,0.00016712,2]
[329595598,1718482252866,-1290.43,0.00016712,2]
[329595599,1718482252878,-500.0,0.00016712,2]
[329595600,1718482252888,-500.0,0.00016712,2]
[329595601,1718482252898,-500.0,0.00016712,2]
[329595602,1718482252909,-500.0,0.00016712,2]
[329595603,1718482252922,-500.0,0.00016712,2]
[329595604,1718482252933,-500.0,0.00016712,2]
[329595605,1718482252945,-500.0,0.00016712,2]
[329595606,1718482252960,-500.0,0.00016712,2]
[329595607,1718482252971,-500.0,0.00016712,2]
[329595608,1718482252986,-500.0,0.00016712,2]
[329595609,1718482253000,-201.35,0.00016712,2]
[329595610,1718482253022,-500.0,0.00016712,2]
[329595611,1718482253042,-500.0,0.00016712,2]
[329595612,1718482253054,-500.0,0.00016712,2]
[329595613,1718482253069,-345.59346049,0.00016712,2]
[329595614,1718482253087,-527.20977423,0.00016712,2]
[329595615,1718482253107,-500.0,0.00016712,2]
[329595616,1718482253121,-500.0,0.00016712,2]
[329595617,1718482253140,-500.0,0.00016712,2]
[329595618,1718482253169,-500.0,0.00016712,2]
[329595619,1718482253181,-500.0,0.00016712,2]
[329595620,1718482253204,-217.69190705,0.00016712,2]
[329595621,1718482253221,-500.0,0.00016712,2]
[329595622,1718482253239,-500.0,0.00016712,2]
[329595623,1718482253251,-500.0,0.00016712,2]
[329595624,1718482253282,-500.0,0.00016712,2]
[329595625,1718482253295,-500.0,0.00016712,2]
[329595626,1718482253310,-500.0,0.00016712,2]
[329595627,1718482253333,-500.0,0.00016712,2]
[329595628,1718482253351,-500.0,0.00016712,2]
[329595629,1718482253364,-506.18196919,0.00016712,2]
[329595630,1718482253379,-500.0,0.00016712,2]
[329595631,1718482253398,-500.0,0.00016712,2]
[329595632,1718482253420,-500.0,0.00016712,2]
[329595633,1718482253431,-283.76592113,0.00016712,2]
[329595634,1718482253448,-500.0,0.00016712,2]
[329595635,1718482253466,-500.0,0.00016712,2]
[329595636,1718482253476,-500.0,0.00016712,2]
[329595637,1718482253497,-500.0,0.00016712,2]
[329595638,1718482253509,-500.0,0.00016712,2]
[329595639,1718482253529,-500.0,0.00016712,2]
[329595640,1718482253547,-227.13191361,0.00016712,2]
[329595641,1718482253563,-500.0,0.00016712,2]
[329595642,1718482253590,-500.0,0.00016712,2]
[329595643,1718482253630,-500.0,0.00016712,2]
[329595644,1718482253642,-500.0,0.00016712,2]
[329595645,1718482253654,-604.28131098,0.00016712,2]
[329595646,1718482253673,-500.0,0.00016712,2]
[329595647,1718482253690,-500.0,0.00016712,2]
[329595648,1718482253706,-500.0,0.00016712,2]
[329595649,1718482253717,-500.0,0.00016712,2]
[329595650,1718482253729,-500.0,0.00016712,2]
[329595651,1718482253741,-500.0,0.00016712,2]
[329595652,1718482253756,-151.0,0.00016712,2]
[329595653,1718482253767,-151.0,0.00016712,2]
[329595654,1718482253779,-151.0,0.00016712,2]
[329595655,1718482253794,-232.266512,0.00016712,2]
[329595656,1718482253808,-500.0,0.00016712,2]
[329595657,1718482253823,-500.0,0.00016712,2]
[329595658,1718482253838,-546.62497122,0.00016712,2]
[329595659,1718482253851,-500.0,0.00016712,2]
[329595660,1718482253862,-1997.77,0.00016712,2]
[329595661,1718482253889,-500.0,0.00016712,2]
[329595662,1718482253921,-151.0,0.00016712,2]
[329595663,1718482253950,-151.0,0.00016712,2]
[329595664,1718482253976,-151.0,0.00016712,2]
[329595665,1718482253990,-270.235824,0.00016712,2]
[329595666,1718482254007,-500.0,0.00016712,2]
[329595667,1718482254044,-500.0,0.00016712,2]
[329595668,1718482254062,-500.0,0.00016712,2]
[329595669,1718482254092,-500.0,0.00016712,2]
[329595670,1718482254103,-500.0,0.00016712,2]
[329595671,1718482254118,-500.0,0.00016712,2]
[329595672,1718482254132,-500.0,0.00016712,2]
[329595673,1718482254146,-500.0,0.00016712,2]
[329595674,1718482254163,-500.0,0.00016712,2]
[329595675,1718482254179,-3756.58,0.00016712,2]
[329595676,1718482254191,-500.0,0.00016712,2]
[329595677,1718482254204,-500.0,0.00016712,2]
[329595678,1718482254218,-500.0,0.00016712,2]
[329595679,1718482254229,-151.0,0.00016712,2]
[329595680,1718482254251,-151.0,0.00016712,2]
[329595681,1718482254262,-492.58354642,0.00016712,2]
[329595682,1718482254288,-500.0,0.00016712,2]
[329595683,1718482254312,-151.0,0.00016712,2]
[329595684,1718482254328,-151.0,0.00016712,2]
[329595685,1718482254363,-500.0,0.00016712,2]
[329595686,1718482254382,-151.0,0.00016712,2]
[329595687,1718482254393,-151.0,0.00016712,2]
[329595688,1718482254404,-500.0,0.00016712,2]
[329595689,1718482254417,-500.0,0.00016712,2]
[329595690,1718482254434,-500.0,0.00016712,2]
[329595691,1718482254457,-545.33487208,0.00016712,2]
[329595692,1718482254469,-520.3,0.00016712,2]
[329595693,1718482254480,-500.0,0.00016712,2]
[329595694,1718482254492,-500.0,0.00016712,2]
[329595695,1718482254502,-500.0,0.00016712,2]
[329595696,1718482254544,-200.682654,0.00016712,2]
[329595697,1718482254555,-200.682654,0.00016712,2]
[329595698,1718482254586,-511.96,0.00016712,2]
[329595699,1718482254607,-500.0,0.00016712,2]
[329595700,1718482254640,-200.682654,0.00016712,2]
[329595701,1718482254665,-200.682654,0.00016712,2]
[329595702,1718482254676,-500.0,0.00016712,2]
[329595703,1718482254686,-151.0,0.00016712,2]
[329595704,1718482254703,-500.0,0.00016712,2]
[329595705,1718482254752,-500.0,0.00016712,2]
[329595706,1718482254764,-500.0,0.00016712,2]
[329595707,1718482254794,-814.88,0.00016712,2]
[329595708,1718482254804,-500.0,0.00016712,2]
[329595709,1718482254818,-500.0,0.00016712,2]
[329595710,1718482254829,-500.0,0.00016712,2]
[329595711,1718482254844,-500.0,0.00016712,2]
[329595712,1718482254862,-1773.51,0.00016712,2]
[329595713,1718482254890,-500.0,0.00016712,2]
[329595714,1718482254926,-500.0,0.00016712,2]
[329595715,1718482254956,-500.0,0.00016712,2]
[329595716,1718482254967,-500.0,0.00016712,2]
[329595717,1718482254983,-500.0,0.00016712,2]
[329595718,1718482255006,-500.0,0.00016712,2]
[329595719,1718482255029,-774.37,0.00016712,2]
[329595720,1718482255056,-151.0,0.00016712,2]
[329595721,1718482255071,-151.0,0.00016712,2]
[329595722,1718482255092,-500.0,0.00016712,2]
[329595723,1718482255115,-500.0,0.00016712,2]
[329595724,1718482255136,-500.0,0.00016712,2]
[329595725,1718482255152,-500.0,0.00016712,2]
[329595726,1718482255177,-500.0,0.00016712,2]
[329595727,1718482255189,-500.0,0.00016712,2]
[329595728,1718482255199,-155.947236,0.00016712,2]
[329595729,1718482255219,-155.947236,0.00016712,2]
[329595730,1718482255270,-500.0,0.00016712,2]
[329595731,1718482255294,-1062.4,0.00016712,2]
[329595732,1718482255332,-464.56550721,0.00016712,2]
[329595733,1718482255504,-35.43449279,0.00016712,2]
[329595734,1718482255533,-155.947236,0.00016712,2]
[329595735,1718482255578,-155.947236,0.00016712,2]
[329595736,1718482255605,-151.0,0.00016712,2]
[329595737,1718482255645,-500.0,0.00016712,2]
[329595738,1718482255676,-151.0,0.00016712,2]
[329595739,1718482255701,-500.0,0.00016712,2]
[329595740,1718482255740,-500.0,0.00016712,2]
[329595741,1718482255773,-3047.76,0.00016712,2]
[329595742,1718482255811,-1745.38,0.00016712,2]
[329595743,1718482255866,-2235.85,0.00016712,2]
[329595744,1718482255888,-2553.19,0.00016712,2]
[329595745,1718482255908,-500.0,0.00016712,2]
[329595746,1718482255948,-500.0,0.00016712,2]
[329595747,1718482255977,-1721.89,0.00016712,2]
[329595748,1718482255998,-442.4,0.00016722,2]
[329595749,1718482256014,-442.4,0.00016864,2]
[329595750,1718482256039,-500.0,0.00016986,2]
[329595751,1718482256068,-247.38673343,0.00016986,2]
[329595752,1718482256112,-500.0,0.00016986,2]
[329595753,1718482256143,-500.0,0.00016986,2]
[329595754,1718482256184,-500.0,0.00016986,2]
[329595755,1718482256210,-500.0,0.00016986,2]
[329595756,1718482256231,-500.0,0.00016986,2]
[329595757,1718482256244,-500.0,0.00016986,2]
[329595758,1718482256280,-500.0,0.00016986,2]
[329595759,1718482256380,-500.0,0.00016986,2]
[329595760,1718482256398,-1290.43,0.00016986,2]
[329595761,1718482256409,-500.0,0.00016986,2]
[329595762,1718482256436,-500.0,0.00016986,2]
[329595763,1718482256449,-500.0,0.00016986,2]
[329595764,1718482256472,-500.0,0.00016986,2]
[329595765,1718482256484,-500.0,0.00016986,2]
[329595766,1718482256500,-344.50926098,0.00016986,2]
[329595767,1718482256511,-500.0,0.00016986,2]
[329595768,1718482256535,-500.0,0.00016986,2]
[329595769,1718482256545,-515.3,0.00016986,2]
[329595770,1718482256556,-500.0,0.00016986,2]
[329595771,1718482256574,-500.0,0.00016986,2]
[329595772,1718482256590,-500.0,0.00016986,2]
[329595773,1718482256632,-500.0,0.00016986,2]
[329595774,1718482256645,-500.0,0.00016986,2]
[329595775,1718482256662,-500.0,0.00016986,2]
[329595776,1718482256679,-500.0,0.00016986,2]
[329595777,1718482256697,-500.0,0.00016986,2]
[329595778,1718482256714,-500.0,0.00016986,2]
[329595779,1718482256740,-500.0,0.00016986,2]
[329595780,1718482256753,-500.0,0.00016986,2]
[329595781,1718482256770,-500.0,0.00016986,2]
[329595782,1718482256805,-500.0,0.00016986,2]
[329595783,1718482256831,-500.0,0.00016986,2]
[329595784,1718482256843,-500.0,0.00016986,2]
[329595785,1718482256882,-500.0,0.00016986,2]
[329595786,1718482256893,-500.0,0.00016986,2]
[329595787,1718482256932,-500.0,0.00016986,2]
[329595788,1718482256980,-500.0,0.00016986,2]
[329595789,1718482257092,-500.0,0.00016986,2]
[329595790,1718482257116,-500.0,0.00016986,2]
[329595791,1718482257127,-618.99845004,0.00016986,2]
[329595792,1718482257153,-500.0,0.00016986,2]
[329595793,1718482257188,-500.0,0.00016986,2]
[329595794,1718482257201,-500.0,0.00016986,2]
[329595795,1718482257236,-239.64072354,0.00016986,2]
[329595796,1718482257289,-243.919796,0.00016986,2]
[329595797,1718482257302,-220.45942557,0.00016986,2]
[329595798,1718482257337,-500.0,0.00016986,2]
[329595799,1718482257352,-500.0,0.00016986,2]
[329595800,1718482257364,-1997.77,0.00016986,2]
[329595801,1718482257377,-500.0,0.00016986,2]
[329595802,1718482257390,-151.0,0.00016986,2]
[329595803,1718482257406,-151.0,0.00016986,2]
[329595804,1718482257422,-504.46762103,0.00016986,2]
[329595805,1718482257434,-500.0,0.00016986,2]
[329595806,1718482257444,-500.0,0.00016986,2]
[329595807,1718482257463,-500.0,0.00016986,2]
[329595808,1718482257473,-500.0,0.00016986,2]
[329595809,1718482257490,-500.0,0.00016986,2]
[329595810,1718482257501,-500.0,0.00016986,2]
[329595811,1718482257518,-500.0,0.00016986,2]
[329595812,1718482257529,-3756.58,0.00016986,2]
[329595813,1718482257540,-500.0,0.00016986,2]
[329595814,1718482257556,-500.0,0.00016986,2]
[329595815,1718482257568,-500.0,0.00016986,2]
[329595816,1718482257580,-151.0,0.00016986,2]
[329595817,1718482257593,-151.0,0.00016986,2]
[329595818,1718482257607,-500.0,0.00016986,2]
[329595819,1718482257625,-151.0,0.00016986,2]
[329595820,1718482257653,-593.59829097,0.00016986,2]
[329595821,1718482257665,-500.0,0.00016986,2]
[329595822,1718482257678,-520.3,0.00016986,2]
[329595823,1718482257693,-500.0,0.00016986,2]
[329595824,1718482257710,-500.0,0.00016986,2]
[329595825,1718482257722,-500.0,0.00016986,2]
[329595826,1718482257735,-200.682654,0.00016986,2]
[329595827,1718482257763,-200.682654,0.00016986,2]
[329595828,1718482257775,-511.96,0.00016986,2]
[329595829,1718482257787,-500.0,0.00016986,2]
[329595830,1718482257799,-200.682654,0.00016986,2]
[329595831,1718482257828,-200.682654,0.00016986,2]
[329595832,1718482257843,-500.0,0.00016986,2]
[329595833,1718482257853,-500.0,0.00016986,2]
[329595834,1718482257870,-577.52506047,0.00016986,2]
[329595835,1718482257884,-814.88,0.00016986,2]
[329595836,1718482257898,-459.6193062,0.00016986,2]
[329595837,1718482257909,-1773.51,0.00016986,2]
[329595838,1718482257924,-500.0,0.00016986,2]
[329595839,1718482257938,-500.0,0.00016986,2]
[329595840,1718482257955,-500.0,0.00016986,2]
[329595841,1718482257965,-500.0,0.00016986,2]
[329595842,1718482257977,-500.0,0.00016986,2]
[329595843,1718482257995,-500.0,0.00016986,2]
[329595844,1718482258021,-774.37,0.00016986,2]
[329595845,1718482258034,-175.916368,0.00016986,2]
[329595846,1718482258060,-500.0,0.00016986,2]
[329595847,1718482258084,-500.0,0.00016986,2]
[329595848,1718482258096,-500.0,0.00016986,2]
[329595849,1718482258118,-512.27824782,0.00016986,2]
[329595850,1718482258129,-500.0,0.00016986,2]
[329595851,1718482258139,-155.947236,0.00016986,2]
[329595852,1718482258150,-155.947236,0.00016986,2]
[329595853,1718482258173,-500.0,0.00016986,2]
[329595854,1718482258187,-1062.4,0.00016986,2]
[329595855,1718482258204,-500.0,0.00016986,2]
[329595856,1718482258215,-155.947236,0.00016986,2]
[329595857,1718482258242,-155.947236,0.00016986,2]
[329595858,1718482258269,-151.0,0.00016986,2]
[329595859,1718482258282,-500.0,0.00016986,2]
[329595860,1718482258297,-500.0,0.00016986,2]
[329595861,1718482258314,-3047.76,0.00016986,2]
[329595862,1718482258327,-1745.38,0.00016986,2]
[329595863,1718482258345,-2235.85,0.00016986,2]
[329595864,1718482258359,-2553.19,0.00016986,2]
[329595865,1718482258370,-500.0,0.00016986,2]
[329595866,1718482258382,-500.0,0.00016986,2]
[329595867,1718482258395,-1721.89,0.00016986,2]
[329595868,1718482258413,-442.4,0.00017006,2]
[329595869,1718482258440,-442.4,0.00017148,2]
[329595870,1718482258451,-1290.43,0.0001726,2]
[329595871,1718482258463,-500.0,0.0001726,2]
[329595872,1718482258488,-500.0,0.0001726,2]
[329595873,1718482258500,-500.0,0.0001726,2]
[329595874,1718482258511,-500.0,0.0001726,2]
[329595875,1718482258532,-500.0,0.0001726,2]
[329595876,1718482258542,-500.0,0.0001726,2]
[329595877,1718482258552,-500.0,0.0001726,2]
[329595878,1718482258563,-500.0,0.0001726,2]
[329595879,1718482258584,-154.52675791,0.0001726,2]
[329595880,1718482258595,-430.52120875,0.0001726,2]
[329595881,1718482258609,-1997.77,0.0001726,2]
[329595882,1718482258623,-500.0,0.0001726,2]
[329595883,1718482258634,-3756.58,0.0001726,2]
[329595884,1718482258661,-500.0,0.0001726,2]
[329595885,1718482258674,-500.0,0.0001726,2]
[329595886,1718482258699,-520.3,0.0001726,2]
[329595887,1718482258725,-511.96,0.0001726,2]
[329595888,1718482258736,-814.88,0.0001726,2]
[329595889,1718482258748,-1773.51,0.0001726,2]
[329595890,1718482258785,-500.0,0.0001726,2]
[329595891,1718482258796,-500.0,0.0001726,2]
[329595892,1718482258822,-774.37,0.0001726,2]
[329595893,1718482258834,-155.947236,0.0001726,2]
[329595894,1718482258846,-1062.4,0.0001726,2]
[329595895,1718482258888,-155.947236,0.0001726,2]
[329595896,1718482258912,-500.0,0.0001726,2]
[329595897,1718482258929,-354.65495153,0.0001726,2]
[329595898,1718482258940,-3047.76,0.0001726,2]
[329595899,1718482258962,-1745.38,0.0001726,2]
[329595900,1718482258977,-2235.85,0.0001726,2]
[329595901,1718482258994,-2553.19,0.0001726,2]
[329595902,1718482259018,-500.0,0.0001726,2]
[329595903,1718482259060,-1721.89,0.0001726,2]
[329595904,1718482259077,-200.682654,0.0001729,2]
[329595905,1718482259101,-200.682654,0.0001729,2]
[329595906,1718482259112,-442.4,0.0001729,2]
[329595907,1718482259123,-442.4,0.00017432,2]
[329595908,1718482259144,-34726.51874727,0.000175,2]
[329595909,1718482259155,-810.06405385,0.000175,3]
[329595910,1718482259174,-151.0,0.000175,2]
[329595911,1718482259201,-151.0,0.000175,2]
[329595912,1718482259229,-155.0,0.0001751,2]
[329595913,1718482259262,-1290.43,0.00017534,2]
[329595914,1718482259274,-500.0,0.00017534,2]
[329595915,1718482259301,-500.0,0.00017534,2]
[329595916,1718482259324,-174.14558218,0.00017534,2]
[329595917,1718482259346,-500.0,0.00017534,2]
[329595918,1718482259387,-500.0,0.00017534,2]
[329595919,1718482259413,-500.0,0.00017534,2]
[329595920,1718482259430,-500.0,0.00017534,2]
[329595921,1718482259457,-418.15416565,0.00017534,2]
[329596046,1718483434688,-6602.4,0.00014264,2]
[329596047,1718483434853,-1998.27996446,0.00014264,2]
[329596048,1718483434906,-530.94475,0.00014264,2]
[329596211,1718483448889,-455.81107464,0.00014264,2]
[329596212,1718483448920,-6600.0,0.00014264,2]
[329596216,1718483449122,-304.132991,0.00014264,2]
[329596217,1718483449140,-1763.6155797,0.00014264,2]
[329596218,1718483449168,-6644.8156402,0.00014264,2]
[329596220,1718483449181,-664.42415185,0.000149,2]
[329596221,1718483449210,-451.51601229,0.000149,2]
[329596224,1718483449242,-545.89534636,0.000149,2]
[329596225,1718483449257,-344.72793895,0.000149,2]
[329596230,1718483449349,-1987.47513661,0.00015,4]
[329596240,1718483450037,-1668.95715486,0.00015,4]
[329596241,1718483450057,-5341.67059194,0.00015,4]
[329596254,1718483450477,-3396.5,0.00015,4]
[329596258,1718483450616,-35639.18249995,0.00015,4]
[329596260,1718483450642,-8429.09224277,0.00015,2]
[329596262,1718483450677,-517.43284977,0.00015,2]
[329596306,1718484311174,5000.0,0.00025,61]
[329596364,1718484635325,-2081.6,0.00014125,2]
[329596434,1718484646476,-2601.07474856,0.00014125,2]
[329596466,1718485202376,-444.0,0.0002408,35]
[329596467,1718485202427,-380.0,0.0002408,35]
[329596468,1718485202466,-170.0,0.0002408,35]
[329596469,1718485202502,-160.0,0.0002408,35]
[329596470,1718485202537,-103.82,0.0002408,35]
[329596471,1718485202846,-84.18,0.0002408,35]
[329596472,1718485202877,-444.0,0.0002409,35]
[329596473,1718485202929,-380.0,0.0002409,35]
[329596474,1718485202974,-170.0,0.0002409,35]
[329596475,1718485203003,-160.0,0.0002409,35]
[329596476,1718485203064,-7.82,0.0002409,35]
[329596477,1718485203180,-180.18,0.0002409,35]
[329596478,1718485203308,-444.0,0.000241,35]
[329596479,1718485203338,-380.0,0.000241,35]
[329596480,1718485203364,-170.0,0.000241,35]
[329596481,1718485203396,-160.0,0.000241,35]
[329596482,1718485203435,-92.0,0.000241,35]
[329596483,1718485203640,-96.0,0.000241,35]
[329596484,1718485392459,3000.0,0.00023,30]
[329596525,1718485836175,-398.8,0.00013807,2]
[329596526,1718485836229,-4871.89012497,0.00013807,2]
[329596527,1718485836268,-15039.57349765,0.00013974,2]
[329596590,1718485846077,-2295.4638228,0.00013974,2]
[329596608,1718485848962,-7564.96267955,0.00013974,2]
[329596609,1718485848987,-193.11976306,0.00014998,7]
[329596610,1718485848999,-386.4171861,0.00014998,7]
[329596611,1718485849011,-200.16378442,0.00014999,2]
[329596612,1718485849026,-21967.78814895,0.00015,2]
[329596613,1718485849269,-1162.34351266,0.00015,2]
[329596616,1718485851117,-3401.92135119,0.00015,2]
[329596617,1718485851144,-946.56236145,0.00015,2]
[329596618,1718485851168,-34730.00235962,0.00015,2]
[329596619,1718485851200,-1692.62660858,0.00015,2]
[329596620,1718485851218,-1303.55844644,0.00015,2]
[329596621,1718485851258,-489.64646748,0.000156,2]
[329596622,1718485851270,-313.9514865,0.000156,2]
[329596623,1718485851286,-587.5893695,0.00016073,2]
[329596624,1718485851298,-166.666666,0.00016164,2]
[329596625,1718485851312,-1750.0,0.00016264,2]
[329596626,1718485851329,-306.0,0.00016267,2]
[329596627,1718485851341,-314.26440033,0.00016432,2]
[329596628,1718486609542,3000.0,0.00023,30]
[329596629,1718486808158,54690.86285706,0.000248,60]
[329596688,1718487034693,-3057.26,0.00014488,2]
[329596689,1718487034708,-2473.48495548,0.00014488,2]
[329596691,1718487034727,-334.86214888,0.00014488,2]
[329596693,1718487034996,-3194.6510714,0.00014488,2]
[329596706,1718487041126,-15839.74182424,0.00014488,2]
[329596707,1718487041137,-587.05793298,0.000149,2]
[329596708,1718487041150,-1692.62660858,0.00015,2]
[329596709,1718487041165,-1303.55844644,0.00015,2]
[329596710,1718487041176,-34730.00235962,0.00015,2]
[329596712,1718487041191,-156.68087415,0.00015756,2]
[329596713,1718487041203,-5270.69012497,0.00016014,2]
[329596714,1718487041242,-157.894737,0.00016164,2]
[329596715,1718487041284,-1750.0,0.00016408,2]
[329596717,1718487041295,-10406.12197133,0.00016432,2]
[329596719,1718487041344,-155.74857925,0.00016432,2]
[329596721,1718487041380,-530.20911563,0.00016434,2]
[329596723,1718487041407,-1281.51462353,0.00016434,2]
[329596725,1718487041468,-384.09093189,0.00016434,2]
[329596727,1718487041482,-552.39710422,0.00016434,2]
[329596728,1718487041499,-282.4521146,0.00016434,2]
[329596730,1718487041512,-182.0047069,0.00016434,2]
[329596732,1718487041540,-8036.96764568,0.00016434,2]
[329596746,1718487041751,-5800.24214773,0.00016434,2]
[329596775,1718487046610,-2119.32305563,0.00016434,2]
[329596777,1718487046624,-1804.323423,0.00016434,2]
[329596779,1718487046639,-8078.53019402,0.00016434,2]
[329596781,1718487046650,-293.46562948,0.00016435,2]
[329596782,1718487046661,-208.36805602,0.00016435,2]
[329596783,1718487046673,-2912.30060751,0.00016435,2]
[329596784,1718487046697,-113.58189341,0.00016436,2]
[329596790,1718487047610,-104.81420065,0.00016436,2]
[329596792,1718487047621,-16215.19427921,0.00016437,2]
[329596793,1718487047633,-151.0,0.00016437,2]
[329596795,1718487047666,-151.0,0.00016437,2]
[329596796,1718487047678,-151.0,0.00016437,2]
[329596797,1718487047689,-151.0,0.00016437,2]
[329596798,1718487047699,-294.5649,0.00016437,2]
[329596799,1718487047715,-151.0,0.00016437,2]
[329596800,1718487047727,-151.0,0.00016437,2]
[329596801,1718487047739,-151.0,0.00016437,2]
[329596802,1718487047752,-151.0,0.00016437,2]
[329596803,1718487047765,-151.0,0.00016437,2]
[329596804,1718487047778,-151.0,0.00016437,2]
[329596805,1718487047792,-513.78547708,0.00016438,2]
[329596806,1718487047816,-264.56670961,0.00016438,2]
[329596807,1718487047829,-1104.92,0.00016438,2]
[329596808,1718487047852,-500.0,0.00016438,2]
[329596809,1718487047888,-500.0,0.00016438,2]
[329596810,1718487047899,-545.59805492,0.00016438,2]
[329596811,1718487047909,-500.0,0.00016438,2]
[329596812,1718487047920,-500.0,0.00016438,2]
[329596813,1718487047930,-500.0,0.00016438,2]
[329596814,1718487047949,-546.94567913,0.00016438,2]
[329596816,1718487047968,-500.0,0.00016438,2]
[329596817,1718487047982,-500.0,0.00016438,2]
[329596819,1718487048015,-500.0,0.00016438,2]
[329596820,1718487048029,-623.92799689,0.00016438,2]
[329596823,1718487048047,-151.0,0.00016438,2]
[329596824,1718487048067,-500.0,0.00016438,2]
[329596826,1718487048080,-151.0,0.00016438,2]
[329596827,1718487048099,-151.0,0.00016438,2]
[329596829,1718487048110,-500.0,0.00016438,2]
[329596830,1718487048123,-500.0,0.00016438,2]
[329596831,1718487048134,-500.0,0.00016438,2]
[329596832,1718487048152,-500.0,0.00016438,2]
[329596834,1718487048173,-500.0,0.00016438,2]
[329596835,1718487048188,-500.0,0.00016438,2]
[329596836,1718487048247,-500.0,0.00016438,2]
[329596838,1718487048259,-500.0,0.00016438,2]